[Event "EIRCC 2019"]
[Site "Tallinn"]
[Date "2019.12.06"]
[Round "9.30"]
[White "Vlassow, Valentin"]
[Black "Haitin, Ilja"]
[Result "1-0"]
[ECO "B01"]
[WhiteElo "2394"]
[BlackElo "2232"]
[Annotator "NA"]
[PlyCount "88"]
[EventDate "2019.12.05"]
[EventType "swiss"]
[EventCountry "EST"]
[SourceTitle "playchess.com"]
[Source "ChessBase"]
[SourceQuality "1"]
[TimeControl "900+10"]

1. e4 {[%emt 0:00:00]} d5 {[%emt 0:00:00]} 2. exd5 {[%emt 0:00:00]} Qxd5 {[%emt 0:00:00]} 3. Nf3 {[%emt 0:00:00]} g6 {[%emt 0:00:00]} 4. d4 {[%emt 0:00:10]} Bg7 {[%emt 0:00:00]} 5. Be2 {[%emt 0:00:14]} Nh6 {[%emt 0:00:08]} 6. O-O {[%emt 0:00:25]} O-O {[%emt 0:00:13]} 7. Bf4 {[%emt 0:00:44]} c5 {[%emt 0:00:35]} 8. dxc5 {[%emt 0:03:39]} Qxc5 {[%emt 0:01:06]} 9. c3 {[%emt 0:00:17]} Nc6 {[%emt 0:00:43]} 10. Nbd2 {[%emt 0:00:04]} e5 {[%emt 0:02:00]} 11. Be3 {[%emt 0:00:07]} Qe7 {[%emt 0:00:07]} 12. Ne4 {[%emt 0:00:53]} b6 {[%emt 0:00:33]} 13. Bg5 {[%emt 0:00:50]} Qe6 {[%emt 0:00:33]} 14. Qb3 {[%emt 0:02:12]} Na5 {[%emt 0:01:10]} 15. Qxe6 {[%emt 0:00:13]} Bxe6 {[%emt 0:00:02]} 16. Nxe5 {[%emt 0:01:06]} Bxe5 {[%emt 0:00:20]} 17. Bxh6 {[%emt 0:00:02]} Rfe8 {[%emt 0:00:52]} 18. Bb5 {[%emt 0:00:27]} Red8 {[%emt 0:00:30]} 19. Rfd1 {[%emt 0:00:03]} Rxd1+ 20. Rxd1 {[%emt 0:00:01]} Bxa2 {[%emt 0:00:54]} 21. b4 {[%emt 0:01:11]} Bc4 {[%emt 0:00:52]} 22. bxa5 {[%emt 0:01:10]} Bxb5 {[%emt 0:00:11]} 23. Rd5 {[%emt 0:00:01]} Re8 {[%emt 0:02:50]} 24. Rxb5 {[%emt 0:00:15]} Bxc3 {[%emt 0:00:01]} 25. f3 {[%emt 0:00:26]} Bd4+ {[%emt 0:00:37]} 26. Kf1 {[%emt 0:00:03]} f5 {[%emt 0:00:22]} 27. Rd5 {[%emt 0:01:32]} fxe4 {[%emt 0:03:24]} 28. Rxd4 {[%emt 0:00:02]} exf3 {[%emt 0:00:01]} 29. gxf3 {[%emt 0:00:04]} bxa5 30. Rd7 {[%emt 0:00:08]} Ra8 {[%emt 0:00:41]} 31. Be3 {[%emt 0:00:02]} Rf8 {[%emt 0:01:06]} 32. Kg2 {[%emt 0:00:10]} Re8 {[%emt 0:00:09]} 33. Kf2 {[%emt 0:00:14]} a6 {[%emt 0:00:13]} 34. Bd4 {[%emt 0:00:07]} Re6 {[%emt 0:00:12]} 35. Rg7+ {[%emt 0:00:24]} Kf8 {[%emt 0:00:00]} 36. Rxh7 {[%emt 0:00:02]} a4 {[%emt 0:00:01]} 37. Rc7 {[%emt 0:00:05]} Ke8 {[%emt 0:00:21]} 38. Rc4 {[%emt 0:00:12]} Kd7 {[%emt 0:00:14]} 39. Rxa4 {[%emt 0:00:02]} Rc6 {[%emt 0:00:16]} 40. h4 {[%emt 0:00:07]} Ke6 {[%emt 0:00:01]} 41. Kg3 {[%emt 0:00:04]} Kd5 {[%emt 0:00:09]} 42. Kg4 {[%emt 0:00:14]} Rc1 {[%emt 0:00:19]} 43. Be3 {[%emt 0:00:23]} Re1 {[%emt 0:00:09]} 44. Kf4 {[%emt 0:00:31]} Rh1 {Ke4+} 1-0

[Event "EIRCC 2019"]
[Site "Tallinn"]
[Date "2019.12.06"]
[Round "9.31"]
[White "Krupenski, Juri"]
[Black "Sysolyatin, Evgeny"]
[Result "1-0"]
[ECO "E06"]
[WhiteElo "2373"]
[BlackElo "2231"]
[Annotator "RC"]
[PlyCount "147"]
[EventDate "2019.12.05"]
[EventType "swiss"]
[EventCountry "EST"]
[SourceTitle "playchess.com"]
[Source "ChessBase"]
[SourceQuality "1"]
[TimeControl "900+10"]

1. d4 {[%emt 0:00:00]} d5 {[%emt 0:00:00]} 2. c4 {[%emt 0:00:00]} e6 {[%emt 0:00:00]} 3. Nf3 {[%emt 0:00:00]} Nf6 {[%emt 0:00:00]} 4. g3 {[%emt 0:00:00]} Be7 {[%emt 0:00:08]} 5. Bg2 {[%emt 0:00:02]} Nbd7 {[%emt 0:00:05]} 6. O-O {[%emt 0:00:05]} dxc4 {[%emt 0:00:04]} 7. Qa4 {[%emt 0:01:07]} a6 {[%emt 0:00:02]} 8. Qxc4 {[%emt 0:00:10]} b5 {[%emt 0:00:02]} 9. Qc2 {[%emt 0:00:15]} Bb7 {[%emt 0:00:01]} 10. Nc3 {[%emt 0:02:28]} c5 {[%emt 0:00:03]} 11. dxc5 {[%emt 0:00:34]} Nxc5 {[%emt 0:00:22]} 12. Rd1 {[%emt 0:00:52]} Qc8 {[%emt 0:01:20]} 13. Be3 {[%emt 0:01:10]} Nce4 {[%emt 0:01:27]} 14. Rac1 {[%emt 0:00:37]} Nxc3 {[%emt 0:00:02]} 15. Qxc3 {[%emt 0:01:44]} Qxc3 {[%emt 0:00:02]} 16. Rxc3 {[%emt 0:00:02]} Nd5 {[%emt 0:00:07]} 17. Rb3 {[%emt 0:00:13]} Nxe3 {[%emt 0:00:04]} 18. Rxe3 {[%emt 0:00:03]} Rd8 {[%emt 0:01:03]} 19. Rxd8+ {[%emt 0:00:08]} Bxd8 {[%emt 0:00:01]} 20. Ne5 {[%emt 0:00:03]} Bxg2 {[%emt 0:00:08]} 21. Kxg2 {[%emt 0:00:02]} Bf6 {[%emt 0:00:13]} 22. Nd3 {[%emt 0:00:09]} Ke7 {[%emt 0:00:19]} 23. Re4 {[%emt 0:00:24]} Rc8 {[%emt 0:00:05]} 24. Kf3 {[%emt 0:01:50]} Kd6 {[%emt 0:00:15]} 25. b3 {[%emt 0:00:34]} a5 {[%emt 0:00:34]} 26. Ke3 {[%emt 0:01:42]} Rc2 {[%emt 0:00:07]} 27. a4 {[%emt 0:00:28]} Rc3 {[%emt 0:00:03]} 28. b4 {[%emt 0:00:30]} Rc4 {[%emt 0:07:27]} 29. axb5 {[%emt 0:00:16]} Rxe4+ {[%emt 0:00:02]} 30. Kxe4 {[%emt 0:00:01]} a4 {[%emt 0:00:01]} 31. Nc1 {[%emt 0:00:17]} Kc7 {[%emt 0:00:38]} 32. Kd3 {[%emt 0:00:06]} Kb6 {[%emt 0:00:01]} 33. Kc4 {[%emt 0:00:02]} Bb2 {[%emt 0:00:06]} 34. Nd3 {[%emt 0:01:23]} a3 {[%emt 0:00:54]} 35. Kb3 {[%emt 0:00:01]} Kxb5 36. Nc5 {[%emt 0:00:35]} Kc6 {[%emt 0:01:22]} 37. Nd3 {[%emt 0:00:24]} Kb5 {[%emt 0:00:04]} 38. Nc5 {[%emt 0:00:09]} Kc6 {[%emt 0:00:54]} 39. Ne4 {[%emt 0:00:16]} h6 {[%emt 0:00:46]} 40. Nd2 {[%emt 0:00:07]} Kd5 {[%emt 0:00:31]} 41. Nc4 {[%emt 0:00:12]} Bd4 {[%emt 0:00:22]} 42. f3 {[%emt 0:00:48]} a2 {[%emt 0:00:05]} 43. e4+ {[%emt 0:00:02]} Kc6 {[%emt 0:00:06]} 44. Kxa2 {[%emt 0:00:02]} f5 {[%emt 0:00:30]} 45. Kb3 {[%emt 0:00:16]} h5 {[%emt 0:00:06]} 46. Na3 {[%emt 0:00:53]} g5 {[%emt 0:00:09]} 47. Kc4 {[%emt 0:00:22]} Bf2 {[%emt 0:00:02]} 48. Nc2 {[%emt 0:00:26]} fxe4 {[%emt 0:01:04]} 49. fxe4 {[%emt 0:00:01]} g4 {[%emt 0:00:01]} 50. Nd4+ {[%emt 0:00:11]} Kd6 {[%emt 0:00:01]} 51. Ne2 {[%emt 0:00:26]} e5 {[%emt 0:00:15]} 52. Kb5 {[%emt 0:00:16]} Kc7 {[%emt 0:00:12]} 53. Kc4 {[%emt 0:00:26]} Kd6 {[%emt 0:00:02]} 54. Kd3 {[%emt 0:00:04]} Kc6 {[%emt 0:00:05]} 55. Nc3 {[%emt 0:00:16]} h4 {[%emt 0:00:16]} 56. gxh4 {[%emt 0:00:04]} Bxh4 {[%emt 0:00:01]} 57. Ke2 {[%emt 0:00:20]} Bg5 {[%emt 0:00:54]} 58. Nd5 {[%emt 0:00:03]} Kb5 {[%emt 0:00:11]} 59. Kd3 {[%emt 0:00:27]} Bh4 {[%emt 0:00:18]} 60. Ne3 {[%emt 0:00:07]} g3 {[%emt 0:00:05]} 61. h3 {[%emt 0:00:01]} Kxb4 {[%emt 0:00:07]} 62. Ke2 {[%emt 0:00:05]} Bg5 {[%emt 0:00:05]} 63. Nf5 {[%emt 0:00:03]} Bf4 {[%emt 0:00:10]} 64. h4 {[%emt 0:00:15]} Kc4 {[%emt 0:00:03]} 65. h5 {[%emt 0:00:02]} Kc3 {[%emt 0:00:10]} 66. Kf3 {[%emt 0:00:13]} Kd3 {[%emt 0:00:01]} 67. Nxg3 {[%emt 0:00:05]} Kc4 {[%emt 0:00:21]} 68. Nf5 {[%emt 0:00:02]} Bg5 {[%emt 0:00:03]} 69. h6 {[%emt 0:00:01]} Bf6 {[%emt 0:00:01]} 70. h7 {[%emt 0:00:14]} Kc5 {[%emt 0:00:01]} 71. Nh4 {[%emt 0:00:06]} Kd6 {[%emt 0:00:02]} 72. Kg4 {[%emt 0:00:27]} Ke6 {[%emt 0:00:01]} 73. Kh5 {[%emt 0:00:03]} Kf7 {[%emt 0:00:08]} 74. Ng6 {[%emt 0:00:01]} 1-0

[Event "EIRCC 2019"]
[Site "Tallinn"]
[Date "2019.12.06"]
[Round "9.32"]
[White "Khakimov, Timur"]
[Black "Degtiarev, Evgeny"]
[Result "1-0"]
[ECO "D00"]
[WhiteElo "2253"]
[BlackElo "2367"]
[Annotator "NA"]
[PlyCount "113"]
[EventDate "2019.12.05"]
[EventType "swiss"]
[EventCountry "EST"]
[SourceTitle "playchess.com"]
[Source "ChessBase"]
[SourceQuality "1"]
[TimeControl "900+10"]

1. d4 {[%emt 0:00:00]} d5 {[%emt 0:00:00]} 2. Bf4 {[%emt 0:00:13]} Nf6 {[%emt 0:00:05]} 3. e3 {[%emt 0:00:02]} e6 {[%emt 0:00:16]} 4. Nf3 {[%emt 0:00:02]} Bd6 {[%emt 0:00:17]} 5. Ne5 {[%emt 0:00:55]} Nfd7 {[%emt 0:01:22]} 6. Bd3 {[%emt 0:00:24]} Nc6 {[%emt 0:01:38]} 7. Qg4 {[%emt 0:00:54]} Ndxe5 {[%emt 0:02:17]} 8. dxe5 {[%emt 0:00:24]} Bb4+ {[%emt 0:01:18]} 9. c3 {[%emt 0:00:03]} Bf8 {[%emt 0:00:02]} 10. Nd2 {[%emt 0:00:09]} Ne7 {[%emt 0:02:56]} 11. Nf3 {[%emt 0:00:06]} Nf5 {[%emt 0:00:27]} 12. Qh3 {[%emt 0:00:30]} c5 {[%emt 0:00:36]} 13. g4 {[%emt 0:00:03]} Ne7 {[%emt 0:00:12]} 14. Ng5 {[%emt 0:01:03]} h6 {[%emt 0:00:09]} 15. Nh7 {[%emt 0:00:12]} Ng6 {[%emt 0:00:30]} 16. Nxf8 {[%emt 0:02:26]} Rxf8 {[%emt 0:00:02]} 17. Bg3 {[%emt 0:00:39]} Bd7 {[%emt 0:00:14]} 18. Qh5 {[%emt 0:00:14]} Qg5 {[%emt 0:00:57]} 19. f4 {[%emt 0:01:04]} Qxh5 {[%emt 0:00:03]} 20. gxh5 {[%emt 0:00:02]} Ne7 {[%emt 0:00:04]} 21. Bh4 {[%emt 0:00:09]} d4 {[%emt 0:01:58]} 22. e4 {[%emt 0:01:47]} dxc3 {[%emt 0:00:14]} 23. bxc3 {[%emt 0:00:01]} Bc6 {[%emt 0:00:07]} 24. Rg1 {[%emt 0:00:07]} Rg8 {[%emt 0:00:21]} 25. O-O-O {[%emt 0:00:38]} a5 {[%emt 0:01:07]} 26. f5 {[%emt 0:00:24]} exf5 {[%emt 0:00:42]} 27. exf5 {[%emt 0:00:01]} Bf3 {[%emt 0:00:22]} 28. Rd2 {[%emt 0:00:23]} Bxh5 {[%emt 0:00:07]} 29. Bb5+ {[%emt 0:01:14]} Nc6 {[%emt 0:00:01]} 30. Rd6 {[%emt 0:00:12]} Rc8 {[%emt 0:00:02]} 31. Rxh6 {[%emt 0:00:32]} gxh6 {[%emt 0:00:34]} 32. Rxg8+ {[%emt 0:00:02]} Kd7 {[%emt 0:00:01]} 33. e6+ {[%emt 0:00:01]} fxe6 {[%emt 0:00:02]} 34. fxe6+ {[%emt 0:00:01]} Kc7 {[%emt 0:00:06]} 35. Bg3+ {[%emt 0:00:02]} Kb6 {[%emt 0:00:02]} 36. Rxc8 {[%emt 0:00:15]} Kxb5 {[%emt 0:00:01]} 37. Rc7 {[%emt 0:00:31]} Kc4 {[%emt 0:00:16]} 38. Kd2 {[%emt 0:00:13]} Kd5 {[%emt 0:00:14]} 39. e7 {[%emt 0:00:06]} Ke6 {[%emt 0:00:03]} 40. Rxb7 {[%emt 0:01:06]} Be8 {[%emt 0:00:36]} 41. Rc7 {[%emt 0:00:54]} h5 {[%emt 0:00:11]} 42. Ke3 {[%emt 0:00:14]} c4 {[%emt 0:00:32]} 43. Kf4 {[%emt 0:00:24]} Nxe7 {[%emt 0:00:31]} 44. Rxc4 {[%emt 0:00:02]} Nd5+ {[%emt 0:00:09]} 45. Kg5 {[%emt 0:00:03]} Bf7 {[%emt 0:00:12]} 46. Rc5 {[%emt 0:00:06]} a4 {[%emt 0:00:04]} 47. a3 {[%emt 0:00:02]} Ke7 {[%emt 0:00:15]} 48. c4 {[%emt 0:00:06]} Nb6 {[%emt 0:00:11]} 49. Rc7+ {[%emt 0:00:04]} Ke8 {[%emt 0:00:05]} 50. c5 {[%emt 0:00:55]} Nc4 {[%emt 0:00:10]} 51. Bd6 {[%emt 0:00:06]} Bd5 {[%emt 0:00:17]} 52. Kf6 {[%emt 0:00:25]} Kd8 {[%emt 0:00:18]} 53. c6 {[%emt 0:00:33]} Nxd6 {[%emt 0:00:03]} 54. Rd7+ {[%emt 0:00:01]} Kc8 {[%emt 0:00:01]} 55. Rxd6 {[%emt 0:00:01]} Bf3 {[%emt 0:00:01]} 56. Kg5 {[%emt 0:00:25]} Kc7 {[%emt 0:00:03]} 57. Rh6 {[%emt 0:00:05]} 1-0

[Event "EIRCC 2019"]
[Site "Tallinn"]
[Date "2019.12.06"]
[Round "9.35"]
[White "Dubrovin, Robert"]
[Black "Shishkov, Andrei"]
[Result "1/2-1/2"]
[ECO "D30"]
[WhiteElo "2235"]
[BlackElo "2352"]
[Annotator "NA"]
[PlyCount "105"]
[EventDate "2019.12.05"]
[EventType "swiss"]
[EventCountry "EST"]
[SourceTitle "playchess.com"]
[Source "ChessBase"]
[SourceQuality "1"]
[TimeControl "900+10"]

1. d4 {[%emt 0:00:00]} d5 {[%emt 0:00:00]} 2. c4 {[%emt 0:00:00]} e6 {[%emt 0:00:00]} 3. Nf3 {[%emt 0:00:16]} a6 {[%emt 0:00:00]} 4. Nbd2 {[%emt 0:00:27]} Nf6 {[%emt 0:00:00]} 5. g3 {[%emt 0:00:02]} c5 {[%emt 0:00:48]} 6. cxd5 exd5 {[%emt 0:00:03]} 7. Bg2 {[%emt 0:01:58]} Nc6 {[%emt 0:00:02]} 8. dxc5 {[%emt 0:00:54]} Bxc5 {[%emt 0:00:04]} 9. O-O {[%emt 0:00:01]} O-O {[%emt 0:00:07]} 10. Nb3 {[%emt 0:00:00]} Ba7 {[%emt 0:00:21]} 11. Nbd4 {[%emt 0:00:03]} Re8 {[%emt 0:01:19]} 12. Bf4 {[%emt 0:03:05]} Nxd4 {[%emt 0:02:41]} 13. Nxd4 {[%emt 0:00:00]} Qb6 {[%emt 0:00:07]} 14. Nb3 {[%emt 0:01:44]} Bg4 {[%emt 0:00:09]} 15. Bf3 {[%emt 0:01:07]} Bh3 16. Bg2 Qe6 {[%emt 0:02:48]} 17. Re1 {[%emt 0:01:56]} Bxg2 {[%emt 0:03:28]} 18. Kxg2 {[%emt 0:00:00]} h6 {[%emt 0:00:47]} 19. Qd3 {[%emt 0:00:48]} Ng4 {[%emt 0:00:41]} 20. Rf1 {[%emt 0:00:37]} Qxe2 {[%emt 0:00:20]} 21. Qxe2 {[%emt 0:00:01]} Rxe2 {[%emt 0:00:01]} 22. Kf3 {[%emt 0:00:02]} Rxf2+ {[%emt 0:00:41]} 23. Kxg4 {[%emt 0:00:01]} Rxh2 {[%emt 0:00:02]} 24. Kf3 {[%emt 0:00:22]} Rxb2 {[%emt 0:00:11]} 25. Be5 {[%emt 0:01:41]} Rc2 {[%emt 0:00:06]} 26. Bd4 {[%emt 0:00:29]} Bxd4 {[%emt 0:00:15]} 27. Nxd4 {[%emt 0:00:01]} Rc3+ {[%emt 0:00:02]} 28. Kg2 {[%emt 0:00:09]} Rac8 {[%emt 0:00:25]} 29. Nf5 {[%emt 0:00:15]} Rc2+ {[%emt 0:00:21]} 30. Rf2 {[%emt 0:00:12]} Rxf2+ {[%emt 0:00:09]} 31. Kxf2 {[%emt 0:00:00]} Rc2+ {[%emt 0:00:02]} 32. Ke3 {[%emt 0:00:10]} Kf8 {[%emt 0:00:15]} 33. a4 {[%emt 0:00:07]} h5 {[%emt 0:00:30]} 34. Rb1 {[%emt 0:00:39]} g6 {[%emt 0:00:01]} 35. Nd4 {[%emt 0:00:40]} Rc3+ {[%emt 0:00:05]} 36. Kf4 {[%emt 0:00:17]} Rc7 {[%emt 0:01:59]} 37. Ke5 {[%emt 0:00:05]} Rd7 {[%emt 0:00:06]} 38. Rb6 {[%emt 0:00:09]} Ke7 {[%emt 0:00:13]} 39. a5 {[%emt 0:00:01]} Kd8 {[%emt 0:00:47]} 40. Rd6 {[%emt 0:00:44]} Rxd6 {[%emt 0:00:12]} 41. Kxd6 g5 {[%emt 0:00:00]} 42. Nf5 {[%emt 0:00:29]} h4 {[%emt 0:00:35]} 43. g4 {[%emt 0:01:15]} h3 {[%emt 0:00:00]} 44. Kxd5 h2 {[%emt 0:00:10]} 45. Ng3 {[%emt 0:00:01]} Kc7 {[%emt 0:00:52]} 46. Nh1 {[%emt 0:00:00]} f6 {[%emt 0:00:15]} 47. Kc5 {[%emt 0:00:05]} Kd7 48. Kb6 {[%emt 0:00:10]} Kc8 {[%emt 0:00:20]} 49. Ng3 {[%emt 0:00:02]} Kb8 {[%emt 0:00:01]} 50. Nh1 {[%emt 0:00:34]} Kc8 {[%emt 0:00:01]} 51. Ng3 {[%emt 0:00:25]} Kb8 {[%emt 0:00:01]} 52. Nh1 {[%emt 0:00:38]} Kc8 {[%emt 0:00:02]} 53. Ng3 {[%emt 0:00:01]} 1/2-1/2

[Event "EIRCC 2019"]
[Site "Tallinn"]
[Date "2019.12.06"]
[Round "9.36"]
[White "Wallin, Aleksi"]
[Black "Duzhakov, Ilya"]
[Result "0-1"]
[ECO "A05"]
[WhiteElo "2219"]
[BlackElo "2351"]
[Annotator "NA"]
[PlyCount "44"]
[EventDate "2019.12.05"]
[EventType "swiss"]
[EventCountry "EST"]
[SourceTitle "playchess.com"]
[Source "ChessBase"]
[SourceQuality "1"]
[TimeControl "900+10"]

1. Nf3 {[%emt 0:03:01]} Nf6 {[%emt 0:00:07]} 2. c4 {[%emt 0:00:04]} g6 {[%emt 0:01:46]} 3. Nc3 {[%emt 0:00:05]} d5 {[%emt 0:00:02]} 4. cxd5 {[%emt 0:00:07]} Nxd5 {[%emt 0:00:01]} 5. Qc2 {[%emt 0:00:03]} Nc6 {[%emt 0:01:29]} 6. Qb3 {[%emt 0:00:03]} Nb6 {[%emt 0:00:19]} 7. d4 {[%emt 0:00:04]} Bg7 {[%emt 0:00:10]} 8. e3 {[%emt 0:00:19]} O-O {[%emt 0:00:15]} 9. Be2 {[%emt 0:00:08]} e5 {[%emt 0:00:44]} 10. d5 {[%emt 0:02:11]} e4 {[%emt 0:00:54]} 11. dxc6 {[%emt 0:00:22]} exf3 {[%emt 0:00:01]} 12. Bxf3 {[%emt 0:00:14]} bxc6 {[%emt 0:00:02]} 13. O-O {[%emt 0:01:07]} Be6 {[%emt 0:01:42]} 14. Qc2 {[%emt 0:00:25]} Rb8 {[%emt 0:01:03]} 15. Rd1 {[%emt 0:01:48]} Qf6 {[%emt 0:01:31]} 16. Ne4 {[%emt 0:02:58]} Qf5 {[%emt 0:01:52]} 17. Qc5 {[%emt 0:01:32]} Rfd8 {[%emt 0:00:19]} 18. Bd2 {[%emt 0:01:03]} Na4 {[%emt 0:01:45]} 19. Qxf5 {[%emt 0:00:44]} gxf5 {[%emt 0:00:16]} 20. Ng5 {[%emt 0:00:50]} Nxb2 {[%emt 0:00:02]} 21. Nxe6 {[%emt 0:00:03]} fxe6 {[%emt 0:00:03]} 22. Ba5 {[%emt 0:00:21]} Nxd1 {[%emt 0:00:04]} 0-1

[Event "EIRCC 2019"]
[Site "Tallinn"]
[Date "2019.12.06"]
[Round "10.1"]
[White "Kulaots, Kaido"]
[Black "Yuffa, Daniil"]
[Result "1-0"]
[ECO "B12"]
[WhiteElo "2538"]
[BlackElo "2566"]
[Annotator "ChessBase"]
[PlyCount "91"]
[EventDate "2019.12.05"]
[EventType "swiss"]
[EventCountry "EST"]
[SourceTitle "playchess.com"]
[Source "ChessBase"]
[SourceQuality "1"]
[TimeControl "900+10"]

1. e4 {[%emt 0:00:00]} c6 {[%emt 0:00:00]} 2. d4 {[%emt 0:00:00]} d5 {[%emt 0:00:00]} 3. e5 {[%emt 0:00:00]} Bf5 {[%emt 0:00:00]} 4. Nf3 {[%emt 0:00:00]} e6 {[%emt 0:00:00]} 5. Be2 {[%emt 0:00:00]} c5 {[%emt 0:00:00]} 6. Be3 {[%emt 0:00:13]} Qb6 {[%emt 0:00:05]} 7. Nc3 {[%emt 0:00:09]} Nc6 {[%emt 0:00:02]} 8. O-O {[%emt 0:00:30]} Qxb2 {[%emt 0:00:02]} 9. Qe1 {[%emt 0:00:15]} cxd4 {[%emt 0:00:05]} 10. Bxd4 {[%emt 0:00:26]} Nxd4 {[%emt 0:00:02]} 11. Nxd4 {[%emt 0:00:01]} Bb4 {[%emt 0:00:02]} 12. Ndb5 {[%emt 0:00:57]} Ba5 {[%emt 0:00:12]} 13. Rb1 {[%emt 0:00:25]} Qxc2 {[%emt 0:00:03]} 14. Rb3 {[%emt 0:00:19]} Ne7 {[%emt 0:01:27]} 15. Nd6+ {[%emt 0:00:01]} Kf8 {[%emt 0:00:01]} 16. Nxb7 {[%emt 0:00:10]} Bb6 {[%emt 0:00:14]} 17. Nd6 {[%emt 0:00:22]} Ba5 {[%emt 0:00:02]} 18. Bf3 {[%emt 0:00:46]} Bd3 {[%emt 0:03:06]} 19. Qc1 {[%emt 0:00:42]} Ng6 {[%emt 0:04:08]} 20. Qa3 {[%emt 0:03:30]} Bxf1 {[%emt 0:00:09]} 21. Qxa5 {[%emt 0:00:32]} Nxe5 {[%emt 0:01:54]} 22. Kxf1 {[%emt 0:02:16]} Nxf3 {[%emt 0:00:51]} 23. gxf3 {[%emt 0:00:02]} Qc1+ {[%emt 0:00:12]} 24. Ke2 {[%emt 0:00:04]} Qc2+ {[%emt 0:00:19]} 25. Ke1 {[%emt 0:00:11]} Qc1+ {[%emt 0:01:18]} 26. Nd1 {[%emt 0:01:04]} Qc6 {[%emt 0:00:54]} 27. Qb4 {[%emt 0:00:16]} a5 {[%emt 0:00:53]} 28. Qb7 {[%emt 0:00:04]} Qxb7 {[%emt 0:00:35]} 29. Rxb7 {[%emt 0:00:01]} f6 {[%emt 0:00:20]} 30. Nc3 {[%emt 0:00:16]} h5 {[%emt 0:00:59]} 31. Ncb5 {[%emt 0:00:08]} Kg8 {[%emt 0:00:22]} 32. Nc7 {[%emt 0:00:40]} Kh7 {[%emt 0:00:34]} 33. Nxa8 {[%emt 0:00:08]} Rxa8 {[%emt 0:00:02]} 34. a4 {[%emt 0:00:14]} Kg6 {[%emt 0:00:45]} 35. Rb5 {[%emt 0:00:33]} d4 {[%emt 0:00:18]} 36. Kd2 {[%emt 0:00:18]} e5 {[%emt 0:00:03]} 37. Nc4 {[%emt 0:00:03]} Kf5 {[%emt 0:00:16]} 38. Rxa5 {[%emt 0:00:03]} Rd8 {[%emt 0:00:14]} 39. Rb5 {[%emt 0:00:13]} Kf4 {[%emt 0:00:01]} 40. a5 {[%emt 0:00:09]} Kxf3 {[%emt 0:00:02]} 41. a6 {[%emt 0:00:15]} e4 {[%emt 0:00:00]} 42. a7 {[%emt 0:00:50]} e3+ {[%emt 0:00:02]} 43. fxe3 {[%emt 0:00:07]} dxe3+ {[%emt 0:00:01]} 44. Ke1 {[%emt 0:00:24]} Rc8 {[%emt 0:00:09]} 45. Rb8 {[%emt 0:00:07]} Rxc4 {[%emt 0:00:10]} 46. a8=Q+ {[%emt 0:00:03]} 1-0

[Event "EIRCC 2019"]
[Site "Tallinn"]
[Date "2019.12.06"]
[Round "10.3"]
[White "Turov, Maxim"]
[Black "Nguyen, Thai Dai Van"]
[Result "1/2-1/2"]
[ECO "D30"]
[WhiteElo "2574"]
[BlackElo "2553"]
[Annotator "ChessBase"]
[PlyCount "33"]
[EventDate "2019.12.05"]
[EventType "swiss"]
[EventCountry "EST"]
[SourceTitle "playchess.com"]
[Source "ChessBase"]
[SourceQuality "1"]
[TimeControl "900+10"]

1. d4 {[%emt 0:00:00]} Nf6 {[%emt 0:00:00]} 2. Nf3 {[%emt 0:00:00]} d5 {[%emt 0:00:00]} 3. c4 {[%emt 0:00:00]} e6 {[%emt 0:00:00]} 4. Bg5 {[%emt 0:00:14]} dxc4 {[%emt 0:00:10]} 5. Qa4+ {[%emt 0:00:37]} Nbd7 {[%emt 0:00:19]} 6. Nc3 {[%emt 0:00:38]} Be7 {[%emt 0:02:12]} 7. e3 {[%emt 0:01:23]} O-O {[%emt 0:03:13]} 8. Bxc4 {[%emt 0:00:09]} h6 {[%emt 0:00:47]} 9. Bh4 {[%emt 0:00:15]} a6 {[%emt 0:00:28]} 10. Be2 {[%emt 0:00:34]} b5 {[%emt 0:00:45]} 11. Qc2 {[%emt 0:00:59]} Bb7 {[%emt 0:00:24]} 12. O-O {[%emt 0:00:04]} c5 {[%emt 0:00:01]} 13. dxc5 {[%emt 0:01:20]} Nxc5 {[%emt 0:00:21]} 14. Rfd1 {[%emt 0:01:03]} Qb6 {[%emt 0:00:45]} 15. b4 {[%emt 0:00:46]} Nce4 {[%emt 0:00:30]} 16. Nxe4 {[%emt 0:00:05]} Bxe4 {[%emt 0:00:01]} 17. Qb2 {[%emt 0:00:28]} 1/2-1/2

[Event "EIRCC 2019"]
[Site "Tallinn"]
[Date "2019.12.06"]
[Round "10.8"]
[White "Ladva, Ottomar"]
[Black "Saric, Ante"]
[Result "0-1"]
[ECO "A05"]
[WhiteElo "2513"]
[BlackElo "2556"]
[Annotator "ChessBase"]
[PlyCount "70"]
[EventDate "2019.12.05"]
[EventType "swiss"]
[EventCountry "EST"]
[SourceTitle "playchess.com"]
[Source "ChessBase"]
[SourceQuality "1"]
[TimeControl "900+10"]

1. Nf3 {[%emt 0:00:00]} Nf6 {[%emt 0:00:00]} 2. g3 {[%emt 0:00:00]} g6 {[%emt 0:00:00]} 3. d4 {[%emt 0:00:02]} d5 {[%emt 0:00:00]} 4. Bg2 {[%emt 0:00:03]} Bg7 {[%emt 0:00:00]} 5. O-O {[%emt 0:00:02]} O-O {[%emt 0:00:00]} 6. Nbd2 {[%emt 0:00:11]} c6 {[%emt 0:00:23]} 7. b3 {[%emt 0:00:24]} a5 {[%emt 0:00:07]} 8. a4 {[%emt 0:01:02]} Bf5 {[%emt 0:01:06]} 9. Bb2 {[%emt 0:02:50]} Na6 {[%emt 0:00:06]} 10. Ne5 {[%emt 0:00:33]} Nd7 {[%emt 0:00:08]} 11. e3 {[%emt 0:01:16]} Nb4 {[%emt 0:01:26]} 12. Rc1 {[%emt 0:00:26]} Na2 {[%emt 0:01:31]} 13. g4 {[%emt 0:01:00]} Nxc1 {[%emt 0:01:54]} 14. gxf5 {[%emt 0:00:04]} Nxe5 {[%emt 0:00:01]} 15. dxe5 {[%emt 0:00:07]} Na2 {[%emt 0:00:02]} 16. c3 {[%emt 0:02:27]} Bxe5 {[%emt 0:00:19]} 17. Qa1 {[%emt 0:00:38]} Nxc3 {[%emt 0:00:12]} 18. Bxc3 {[%emt 0:00:03]} Bxc3 {[%emt 0:00:02]} 19. Qxc3 {[%emt 0:00:01]} gxf5 {[%emt 0:00:22]} 20. Qe5 {[%emt 0:00:52]} Qd7 {[%emt 0:00:24]} 21. Bh3 {[%emt 0:01:28]} e6 {[%emt 0:00:09]} 22. Qf6 {[%emt 0:01:16]} Qd8 {[%emt 0:00:09]} 23. Qh6 {[%emt 0:00:22]} Kh8 {[%emt 0:00:07]} 24. Kh1 {[%emt 0:00:14]} Rg8 {[%emt 0:00:03]} 25. Nf3 {[%emt 0:00:32]} Rg6 {[%emt 0:00:14]} 26. Qh5 {[%emt 0:00:49]} Qf6 {[%emt 0:00:13]} 27. Nd4 {[%emt 0:01:11]} Rh6 {[%emt 0:00:57]} 28. Qf3 {[%emt 0:00:10]} Qh4 {[%emt 0:00:01]} 29. Rg1 {[%emt 0:01:31]} Qxh3 {[%emt 0:00:22]} 30. Qf4 {[%emt 0:00:01]} Qh4 {[%emt 0:00:03]} 31. Qc7 {[%emt 0:00:23]} Rg8 {[%emt 0:00:27]} 32. Qe5+ {[%emt 0:00:09]} Qf6 {[%emt 0:00:04]} 33. Rxg8+ {[%emt 0:00:07]} Kxg8 {[%emt 0:00:01]} 34. Qb8+ {[%emt 0:00:12]} Kg7 {[%emt 0:00:02]} 35. Nf3 {[%emt 0:00:13]} Qa1+ {[%emt 0:00:18]} 0-1